bitfinex-derivatives/quotes_ETHF0:USTF0_20250421
["timestamp","ask_amount","ask_price","bid_price","bid_amount"]
[1745270483654,22.34148556,1576.4,1576.3,8.3e-07]
[1745270483954,31.71484479,1576.4,1576.3,8.3e-07]
[1745270485454,31.7148453,1576.4,1576.3,8.3e-07]
[1745270487049,32.69904531,1576.4,1576.3,8.3e-07]
[1745270487250,35.90684531,1576.4,1576.3,8.3e-07]
[1745270490456,35.90684519,1576.4,1576.3,8.3e-07]
[1745270490860,32.69904519,1576.4,1576.3,8.3e-07]
[1745270491361,35.90684519,1576.4,1576.3,8.3e-07]
[1745270492061,35.90684511,1576.4,1576.3,8.3e-07]
[1745270492560,35.79331754,1576.4,1576.3,8.3e-07]
[1745270492762,35.9068453,1576.4,1576.3,8.3e-07]
[1745270493061,38.00665764,1576.4,1576.3,8.3e-07]
[1745270493761,34.79885764,1576.4,1576.3,8.3e-07]
[1745270493963,37.89312988,1576.4,1576.3,8.3e-07]
[1745270494265,38.00665746,1576.4,1576.3,8.3e-07]
[1745270495665,37.89312988,1576.4,1576.3,8.3e-07]
[1745270495862,38.0066575,1576.4,1576.3,8.3e-07]
[1745270498058,27.49941635,1576.4,1576.3,8.3e-07]
[1745270499367,27.51431635,1576.4,1576.3,8.3e-07]
[1745270500067,24.30651635,1576.4,1576.3,8.3e-07]
[1745270500255,27.51431635,1576.4,1576.3,8.3e-07]
[1745270502274,18.14095712,1576.4,1576.3,8.3e-07]
[1745270505572,18.1409573,1576.4,1576.3,8.3e-07]
[1745270505774,27.51431653,1576.4,1576.3,8.3e-07]
[1745270507075,27.51431648,1576.4,1576.3,8.3e-07]
[1745270508676,27.5143169,1576.4,1576.3,8.3e-07]
[1745270508878,27.51431689,1576.4,1576.3,8.3e-07]
[1745270510973,24.30651689,1576.4,1576.3,8.3e-07]
[1745270511167,27.51431689,1576.4,1576.3,8.3e-07]
[1745270513378,27.51431558,1576.4,1576.3,8.3e-07]
[1745270514984,27.5143176,1576.4,1576.3,8.3e-07]
[1745270516185,24.3065176,1576.4,1576.3,8.3e-07]
[1745270516385,27.5143176,1576.4,1576.3,8.3e-07]
[1745270518074,27.40078873,1576.4,1576.3,8.3e-07]
[1745270518279,27.51431858,1576.4,1576.3,8.3e-07]
[1745270518784,27.51431858,1576.4,1575.5,13.84768339]
[1745270518785,1.26933,1575.6,1575.5,13.84768339]
[1745270518984,8.73065985,1575.6,1575.5,8.93631339]
[1745270519179,15.77731259,1575.6,1575.5,1.67045339]
[1745270519380,1.26941,1575.5,1575.4,17.06661707]
[1745270519683,3.1689537,1575.5,1575.4,13.92962707]
[1745270520186,10.48843649,1575.5,1575.4,4.36276707]
[1745270520485,10.48843649,1575.5,1575.2,20.78939252]
[1745270520486,1.26957,1575.3,1575.2,20.78939252]
[1745270520687,9.36504692,1575.3,1575.2,20.78939252]
[1745270521083,10.56024744,1575.3,1575.2,19.04550252]
[1745270521284,10.56024744,1575.3,1575.2,15.70874252]
[1745270521484,11.70244744,1575.3,1575.2,13.61681252]
[1745270521685,11.70244744,1575.3,1575.2,11.57472252]
[1745270521991,11.70244744,1575.3,1575.2,9.72343252]
[1745270522282,11.70244744,1575.3,1575.2,5.40587252]
[1745270522485,11.70244744,1575.3,1575.2,0.80842252]
[1745270522989,1.26965,1575.2,1575.1,0.00951083]
[1745270523181,3.11889422,1575.2,1575.1,0.00951083]
[1745270523688,3.11889422,1575.2,1575.1,8.3e-07]
[1745270523883,7.25235,1575.2,1575.1,8.3e-07]
[1745270524088,7.36587317,1575.2,1575.1,8.3e-07]
[1745270525291,7.3658734,1575.2,1575.1,8.3e-07]
[1745270525589,7.36587302,1575.2,1575.1,8.3e-07]
[1745270526088,7.38077302,1575.2,1575.1,8.3e-07]
[1745270527088,7.38077228,1575.2,1575.1,8.3e-07]
[1745270527789,13.36477228,1575.2,1575.1,8.3e-07]
[1745270528786,13.36475648,1575.2,1575.1,8.3e-07]
[1745270529187,20.53575905,1575.2,1575.1,8.3e-07]
[1745270530989,1.27005,1574.7,1574.6,1.7005]
[1745270531189,4.47785,1574.7,1574.6,1.7005]
[1745270531391,4.47785,1574.7,1574.6,6.7005]
[1745270534193,4.47785,1574.7,1574.6,8.9578]
[1745270535394,3.2078,1574.7,1574.6,10.22793]
[1745270535792,3.2078,1574.7,1574.6,5.36725437]
[1745270536499,4.47785,1574.7,1574.6,5.36725437]
[1745270536690,3.2078,1574.7,1574.6,5.36725437]
[1745270538098,0.00951083,1574.8,1574.7,1.27005]
[1745270538488,0.00951083,1574.8,1574.7,6.27005]
[1745270538892,0.00951083,1574.8,1574.7,6.65715]
[1745270539400,0.00951083,1574.8,1574.7,12.80315]
[1745270540994,3.2078,1575.1,1575.0,1.26981]
[1745270541197,1.28458,1575.2,1575.1,1.26973]
[1745270541198,0.0149,1575.2,1575.1,1.26973]
[1745270541392,1.724,1575.4,1575.1,1.26973]
[1745270541393,8.67962793,1575.5,1575.4,1.26949]
[1745270541901,7.41014793,1575.5,1575.4,1.26949]
[1745270542094,7.41014793,1575.5,1575.4,6.65659]
[1745270543202,3.2078,1575.5,1575.4,6.65659]
[1745270544100,3.2078,1575.5,1575.4,12.80259]
[1745270545201,4.47721,1575.5,1575.4,12.80259]
[1745270545500,4.47721,1575.5,1575.4,7.80259]
[1745270545899,3.2078,1575.5,1575.4,7.80259]
[1745270546202,3.2078,1575.5,1575.4,1.65659]
[1745270547300,3.2078,1575.5,1575.4,12.80259]
[1745270547495,0.00951083,1575.6,1575.5,1.26941]
[1745270547695,0.00951083,1575.6,1575.5,2.83491]
[1745270548203,0.00951083,1575.6,1575.5,8.98091]
[1745270551405,3.21731083,1575.6,1575.5,8.98091]
[1745270554609,3.21731083,1575.6,1575.5,8.59651]
[1745270555306,3.21731083,1575.6,1575.5,2.45051]
[1745270556112,4.48664083,1575.6,1575.5,2.45051]
[1745270556311,4.48664083,1575.6,1575.5,8.59651]
[1745270556911,6.19244083,1575.6,1575.5,8.59651]
[1745270557410,6.19244083,1575.6,1575.5,2.45051]
[1745270557710,4.92311083,1575.6,1575.5,2.45051]
[1745270558214,4.92311083,1575.6,1575.5,8.59651]
[1745270558614,6.19244083,1575.6,1575.5,8.59651]
[1745270558815,4.92311083,1575.6,1575.5,8.59651]
[1745270568922,1.71531083,1575.6,1575.5,8.59651]
[1745270577627,3.2078,1575.9,1575.7,1.26925]
[1745270577834,3.2078,1575.9,1575.8,5.46917]
[1745270578032,6.36797563,1575.9,1575.8,5.46917]
[1745270580936,8.19487563,1575.9,1575.8,5.46917]
[1745270582337,5.0347,1575.9,1575.8,5.46917]
[1745270584136,1.8269,1575.9,1575.8,6.66777]
[1745270584339,4.20234793,1576.1,1576.0,1.26901]
[1745270584532,9.21994793,1576.1,1576.0,1.26901]
[1745270584735,9.21994793,1576.1,1576.0,2.49981]
[1745270585340,9.21994793,1576.1,1576.0,8.64581]
[1745270585942,6.01214793,1576.1,1576.0,8.64581]
[1745270586141,9.21994793,1576.1,1576.0,8.64581]
[1745270586440,9.21994793,1576.1,1576.0,7.41501]
[1745270586644,5.0176,1576.1,1576.0,7.41501]
[1745270587141,5.0176,1576.1,1576.0,1.26901]
[1745270592143,5.0176,1576.1,1576.0,7.41501]
[1745270593147,5.0176,1576.1,1576.0,1.26901]
[1745270594341,5.0176,1576.1,1576.0,7.41501]
[1745270598150,5.0176,1576.1,1576.0,1.26901]
[1745270599254,5.0176,1576.1,1576.0,7.41501]
[1745270600054,9.44669563,1576.1,1576.0,6.146]
[1745270600357,1.2691,1576.0,1575.9,1.26904]
[1745270600541,3.0121,1576.0,1575.9,1.26904]
[1745270600846,6.17227563,1576.0,1575.9,1.26904]
[1745270601651,1.26917,1575.9,1575.8,1.2691]
[1745270601857,8.53507,1575.9,1575.8,1.2691]
[1745270602152,11.69524563,1575.9,1575.8,1.2691]
[1745270605758,16.69524563,1575.9,1575.8,1.2691]
[1745270608958,11.69524563,1575.9,1575.8,1.2691]
[1745270609159,12.68979356,1575.9,1575.8,1.2691]
[1745270609361,15.89759356,1575.9,1575.8,1.2691]
[1745270609760,15.89759356,1575.9,1575.7,7.32012]
[1745270610060,2.94677,1575.8,1575.7,5.41625]
[1745270610457,6.10694563,1575.8,1575.7,5.41625]
[1745270611954,6.10694563,1575.8,1575.7,4.147]
[1745270612150,6.10694563,1575.8,1575.4,3.17354]
[1745270612151,3.17312,1575.7,1575.3,0.00951083]
[1745270612357,4.47729,1575.4,1575.3,5.41996083]
[1745270612556,4.47729,1575.4,1575.3,46.21996083]
[1745270615264,9.36926563,1575.4,1575.3,5.41996083]
[1745270622060,6.20909,1575.4,1575.3,5.41996083]
[1745270622264,9.36926563,1575.4,1575.3,5.41996083]
[1745270623667,6.16146563,1575.4,1575.3,5.41996083]
[1745270623865,4.9396,1575.4,1575.3,5.41996083]
[1745270624065,1.7318,1575.4,1575.3,9.44846083]
[1745270631176,1.7318,1575.4,1575.3,50.24846083]
[1745270643079,3.2078,1575.5,1575.4,1.26949]
[1745270643269,8.17957563,1575.5,1575.4,3.01569]
[1745270643586,5.0194,1575.5,1575.4,3.01569]
[1745270643879,7.41014793,1575.7,1575.6,1.26933]
[1745270644183,4.20234793,1575.7,1575.6,5.41133]
[1745270644383,4.20234793,1575.7,1575.6,9.38623]
[1745270644877,6.30951799,1575.8,1575.7,1.26925]
[1745270645077,6.30951799,1575.8,1575.7,12.36925]
[1745270645982,12.32746332,1576.0,1575.9,1.26909]
[1745270645983,8.12111799,1576.0,1575.9,1.26909]
[1745270646182,11.28129362,1576.0,1575.9,5.41109]
[1745270646683,11.28129362,1576.0,1575.9,46.21109]
[1745270650286,4.97177563,1576.0,1575.9,46.21109]
[1745270656487,4.97177563,1576.0,1575.9,5.41109]
[1745270658187,8.17957563,1576.0,1575.9,5.41109]
[1745270658388,9.44858563,1576.0,1575.9,5.41109]
[1745270658585,5.0194,1576.0,1575.9,5.41109]
[1745270659090,1.8116,1576.0,1575.9,5.41109]
[1745270660486,1.8116,1576.0,1575.9,6.73859]
[1745270660686,1.8116,1576.0,1575.9,9.94279]
[1745270662293,2.3872,1576.1,1576.0,1.26901]
[1745270662294,1.173,1576.1,1576.0,1.26901]
[1745270662489,2.8421,1576.1,1576.0,2.95111]
[1745270662899,2.8421,1576.1,1576.0,43.75111]
[1745270665793,1.6691,1576.1,1576.0,43.75111]
[1745270666399,2.7658,1576.3,1576.2,1.26884]
[1745270666602,3.2078,1576.4,1576.3,1.26876]
[1745270666804,6.36797563,1576.4,1576.3,2.98096]
[1745270669606,8.09417563,1576.4,1576.3,2.98096]
[1745270670610,4.934,1576.4,1576.3,2.98096]
[1745270676902,1.7262,1576.4,1576.3,2.98096]
[1745270677914,4.88637563,1576.4,1576.3,1.26876]
[1745270678302,4.88637563,1576.4,1576.3,42.06876]
[1745270679316,4.88637563,1576.4,1576.3,43.76436]
[1745270679510,4.88637563,1576.4,1576.3,42.06876]
[1745270680815,4.88637563,1576.4,1576.3,1.26876]
[1745270692122,8.09417563,1576.4,1576.3,1.26876]
[1745270693025,4.88637563,1576.4,1576.3,1.26876]
[1745270693224,8.09417563,1576.4,1576.3,1.26876]
[1745270696626,4.88637563,1576.4,1576.3,1.26876]
[1745270696829,8.09417563,1576.4,1576.3,1.26876]
[1745270700327,0.00951083,1576.5,1576.4,1.26868]
[1745270700528,6.31902882,1576.5,1576.4,1.26868]
[1745270700731,1.74071758,1576.5,1576.4,7.96718]
[1745270700927,8.41269065,1576.6,1576.5,1.2686]
[1745270701128,8.41269065,1576.6,1576.5,17.8039]
[1745270701436,8.41269065,1576.6,1576.5,22.8039]
[1745270701734,8.41269065,1576.6,1576.5,63.6039]
[1745270702132,7.08918065,1576.6,1576.5,63.6039]
[1745270702323,4.27538065,1576.6,1576.5,63.6039]
[1745270703029,1.01177065,1576.6,1576.5,63.6039]
[1745270703231,6.5e-07,1576.6,1576.5,63.6039]
[1745270704938,6.5e-07,1576.6,1576.5,160.3359]
[1745270705537,0.00951083,1576.7,1576.6,1.26852]
[1745270705736,0.00951083,1576.7,1576.6,4.42992]
[1745270708239,0.00951083,1576.7,1576.6,7.63772]
[1745270709436,0.00951083,1576.7,1576.6,4.42992]
[1745270709636,0.00951083,1576.7,1576.6,7.63772]
[1745270710025,0.00951083,1576.7,1576.6,4.42992]
[1745270710431,0.00951083,1576.7,1576.6,7.63772]
[1745270711138,0.00951083,1576.7,1576.6,4.42992]
[1745270713841,8.3e-07,1576.7,1576.6,4.42992]
[1745270723342,1.73250083,1576.9,1576.8,1.26836]
[1745270723644,1.3831,1577.0,1576.9,1.26828]
[1745270723842,4.54327563,1577.0,1576.9,4.44858]
[1745270724847,3.2078,1577.4,1576.9,3.1803]
[1745270725043,2.7239,1577.3,1577.2,1.26804]
[1745270725249,5.88407563,1577.3,1577.2,5.40404]
[1745270725745,5.88407563,1577.3,1577.2,8.61184]
[1745270725949,1.3681,1577.3,1577.2,8.61184]
[1745270726250,1.3681,1577.3,1577.2,16.08784]
[1745270727052,1.3681,1577.3,1577.2,16.59080095]
[1745270727243,1.3681,1577.3,1577.2,10.44480095]
[1745270730550,3.0173,1577.4,1577.3,1.26796]
[1745270732152,3.0173,1577.4,1577.3,2.94686]
[1745270732451,3.0173,1577.4,1577.3,4.32606]
[1745270735252,3.0173,1577.4,1577.3,7.53386]
[1745270737050,3.0173,1577.4,1577.3,4.32606]
[1745270738851,3.0173,1577.4,1577.3,7.53386]
[1745270743647,3.0173,1577.4,1577.3,6.15466]
[1745270745059,6.17747563,1577.4,1577.3,4.47576]
[1745270746055,11.17747563,1577.4,1577.3,1.26796]
[1745270748457,6.17747563,1577.4,1577.3,1.26796]
[1745270762259,6.17747563,1577.4,1577.3,2.54906]
[1745270762667,6.17747563,1577.4,1577.3,4.30786]
[1745270765173,6.17747563,1577.4,1577.3,45.10786]
[1745270768484,6.17747563,1577.4,1577.3,1.26796]
[1745270768688,12.44535563,1577.4,1577.3,1.26796]
[1745270768989,11.17747563,1577.4,1577.3,1.26796]
[1745270769190,17.32347563,1577.4,1577.3,1.26796]
[1745270769793,18.59135563,1577.4,1577.3,1.26796]
[1745270769992,17.32347563,1577.4,1577.3,1.26796]
[1745270770991,12.32347563,1577.4,1577.3,1.26796]
[1745270771790,19.47843968,1577.4,1577.3,1.26796]
[1745270776098,13.33243968,1577.4,1577.3,1.26796]
[1745270777093,19.47843968,1577.4,1577.3,1.26796]
[1745270778098,13.33243968,1577.4,1577.3,1.26796]
[1745270779098,19.47843968,1577.4,1577.3,1.26796]
[1745270780305,23.71321216,1577.4,1577.3,1.26796]
[1745270782806,26.92101216,1577.4,1577.3,1.26796]
[1745270784105,20.57469539,1577.4,1577.3,1.26796]
[1745270785103,14.42869539,1577.4,1577.3,1.26796]
[1745270788210,20.57469539,1577.4,1577.3,1.26796]
[1745270791198,14.42869539,1577.4,1577.3,1.26796]
[1745270793310,16.54023968,1577.4,1577.3,1.26796]
[1745270793510,13.38006405,1577.4,1577.3,1.26796]
[1745270793712,13.38006405,1577.4,1577.3,2.55896]
[1745270794015,12.03836405,1577.4,1577.3,2.55896]
[1745270794312,12.03836405,1577.4,1577.3,4.38006]
[1745270798007,4.8834,1577.4,1577.3,4.38006]
[1745270802921,6.34631677,1577.5,1577.4,1.26788]
[1745270803119,6.34631677,1577.5,1577.4,4.28348]
[1745270807223,5.97003731,1577.7,1577.6,1.26772]
[1745270807423,9.13021294,1577.7,1577.6,5.39772]
[1745270807618,9.13021294,1577.7,1577.6,9.95282]
[1745270811925,4.89457563,1577.7,1577.6,9.95282]
[1745270814826,6.25117563,1577.7,1577.6,9.95282]
[1745270818927,6.25117563,1577.7,1577.6,8.63542]
[1745270830735,6.25117563,1577.7,1577.6,6.80502]
[1745270841748,6.25117563,1577.7,1577.6,5.39772]
[1745270842246,12.39717563,1577.7,1577.6,5.39772]
[1745270844149,6.25117563,1577.7,1577.6,5.39772]
[1745270844647,15.24580464,1577.7,1577.0,8.42385887]
[1745270844849,4.47592,1577.1,1577.0,1.31575887]
[1745270845035,1.2682,1577.0,1576.9,12.66361862]
[1745270845242,1.2682,1577.0,1576.9,1.39457749]
[1745270845448,6.2682,1577.0,1576.9,1.35267749]
[1745270845843,1.26828,1576.9,1576.8,15.38998861]
[1745270846155,1.26828,1576.9,1576.8,15.39949944]
[1745270846156,14.74908,1576.9,1576.8,15.39949944]
[1745270846353,19.74908,1576.9,1576.8,15.39949944]
[1745270849547,41.42043946,1576.9,1576.8,0.00951083]
[1745270850751,47.40443946,1576.9,1576.8,0.00951083]
[1745270853658,30.74764938,1576.9,1576.8,0.00951083]
[1745270854053,32.44574938,1576.9,1576.8,0.00951083]
[1745270854658,32.55924958,1576.9,1576.8,0.00951083]
[1745270856057,27.55924958,1576.9,1576.8,0.00951083]
[1745270856656,32.55924958,1576.9,1576.8,8.3e-07]
[1745270856856,1.26868,1576.4,1576.3,4.127]
[1745270857056,4.47648,1576.4,1576.3,1.7966]
[1745270857259,10.62248,1576.4,1576.3,1.7966]
[1745270858157,4.47648,1576.4,1576.3,1.7966]
[1745270861863,4.47648,1576.4,1576.1,8.17956]
[1745270861864,1.26884,1576.2,1576.1,8.17956]
[1745270862065,4.47664,1576.2,1576.1,8.17956]
[1745270864165,4.47664,1576.2,1576.1,6.9107]
[1745270864368,4.47664,1576.2,1576.1,8.17962]
[1745270866266,4.47664,1576.2,1576.1,9.87582]
[1745270867562,3.2078,1576.2,1576.1,9.87582]
[1745270867959,4.47664,1576.2,1576.1,9.87582]
[1745270870568,1.26884,1576.2,1576.1,9.87582]
[1745270871072,4.47664,1576.2,1576.1,9.87582]
[1745270872173,3.2078,1576.2,1576.1,9.87582]
[1745270873569,3.17153,1576.5,1576.3,1.26876]
[1745270873570,3.2078,1576.4,1576.3,1.26876]
[1745270873877,9.1918,1576.6,1576.5,1.2686]
[1745270874376,3.2078,1576.6,1576.5,3.0115]
[1745270874778,3.2078,1576.6,1576.5,8.0115]
[1745270874971,0.00951083,1576.7,1576.6,1.26852]
[1745270875173,0.00951083,1576.7,1576.6,3.01142]
[1745270881182,3.2078,1576.9,1576.8,1.26836]
[1745270881479,3.2078,1576.9,1576.8,5.42936]
[1745270881683,3.2078,1576.9,1576.8,7.25076]
[1745270883492,3.2078,1576.9,1576.8,8.62126]
[1745270884786,1.27777083,1577.0,1576.9,1.26828]
[1745270884992,0.00951083,1577.0,1576.9,3.01958]
[1745270886383,0.00951083,1577.0,1576.9,43.81958]
[1745270888191,0.00951083,1577.0,1576.9,45.15918]
[1745270889084,6.25052,1577.3,1577.2,1.26804]
[1745270889993,6.25052,1577.3,1577.2,2.93164]
[1745270890591,4.47582,1577.3,1577.2,4.22214]
[1745270895396,6.17682,1577.3,1577.2,4.22214]
[1745270898599,6.17682,1577.3,1577.1,5.5528]
[1745270898600,1.26804,1577.2,1577.1,4.161]
[1745270898801,3.07324,1577.2,1577.1,4.161]
[1745270898990,3.07324,1577.2,1577.1,5.42912]
[1745270899191,3.07324,1577.2,1577.1,4.161]
[1745270899391,3.07324,1577.2,1577.1,5.42912]
[1745270902402,6.28104,1577.2,1577.1,5.42912]
[1745270905102,3.2078,1577.2,1577.1,5.42912]
[1745270905708,3.2078,1577.2,1577.1,7.11972]
[1745270906298,4.47584,1577.2,1577.1,7.11972]
[1745270907406,3.2078,1577.2,1577.1,7.11972]
[1745270911894,6.18964,1577.3,1577.2,1.26804]
[1745270912101,6.18964,1577.3,1577.2,4.37374]
[1745270912294,6.18964,1577.3,1577.2,5.75014]
[1745270912600,4.9216,1577.3,1577.2,5.75014]
[1745270914109,6.18956,1577.3,1577.2,5.75014]
[1745270920310,6.18956,1577.3,1577.2,1.26804]
[1745270921009,6.18956,1577.3,1577.2,2.98164]
[1745270923106,11.20436621,1577.3,1577.2,2.98164]
[1745270924005,11.20436621,1577.3,1577.1,5.42912]
[1745270924211,3.03954,1577.2,1577.1,5.42912]
[1745270925413,1.7715,1577.2,1577.1,5.42912]
[1745270925712,3.03954,1577.2,1577.1,5.42912]
[1745270927310,3.03954,1577.2,1577.1,7.26262]
[1745270929716,10.20526304,1577.2,1577.1,7.26262]
[1745270932814,8.93722304,1577.2,1577.1,7.26262]
[1745270933013,10.20526304,1577.2,1577.1,7.26262]
[1745270933216,8.93722304,1577.2,1577.1,7.26262]
[1745270934208,10.99238772,1577.2,1577.1,7.26262]
[1745270937120,10.18366302,1577.2,1577.1,7.26262]
[1745270940207,11.45170302,1577.2,1577.1,7.26262]
[1745270940411,10.18366302,1577.2,1577.1,7.26262]
[1745270941115,9.22088772,1577.2,1577.1,7.26262]
[1745270942215,10.95468772,1577.2,1577.1,7.26262]
[1745270959430,1.26825,1577.0,1576.8,0.00951083]
[1745270959617,4.47608,1576.9,1576.8,0.00951083]
[1745270959819,6.31658,1576.9,1576.8,0.00951083]
[1745270960023,11.31658,1576.9,1576.8,0.00951083]
[1745270960322,17.46258,1576.9,1576.8,0.00951083]
[1745270960522,1.26844,1576.7,1576.6,12.59355927]
[1745270960729,4.47624,1576.7,1576.6,12.59355927]
[1745270961127,6.31674,1576.7,1576.6,12.59355927]
[1745270961329,11.31674,1576.7,1576.6,9.37624844]
[1745270961925,11.4302437,1576.7,1576.6,9.37624844]
[1745270962126,1.26852,1576.6,1576.5,0.00951083]
[1745270962333,3.10902,1576.6,1576.5,0.00951083]
[1745270962535,8.10902,1576.6,1576.5,0.00951083]
[1745270963237,14.25502,1576.6,1576.5,0.00951083]
[1745270965026,14.25502,1576.6,1576.5,8.3e-07]
[1745270965027,24.36702,1576.6,1576.5,8.3e-07]
[1745270965222,24.48053333,1576.6,1576.5,8.3e-07]
[1745270967931,24.48054055,1576.6,1576.5,8.3e-07]
[1745270968543,46.65664332,1576.6,1576.5,8.3e-07]
[1745270971245,46.65664579,1576.6,1576.5,8.3e-07]
[1745270972735,46.65664579,1576.6,1576.0,7.06628]
[1745270972736,1.26892,1576.1,1576.0,7.06628]
[1745270972941,4.47672,1576.1,1576.0,5.39698]
[1745270982139,1.26892,1576.1,1576.0,5.39698]
[1745270982346,4.47672,1576.1,1576.0,5.39698]
[1745270983445,9.1918,1576.3,1576.2,1.26884]
[1745270983946,5.984,1576.3,1576.2,6.26884]
[1745270984441,1.26884,1576.2,1576.1,3.94975]
[1745270984632,4.47663,1576.3,1576.2,1.26884]
[1745270985645,6.19544,1576.4,1576.3,1.26876]
[1745270985851,1.26874,1576.4,1576.3,1.26876]
[1745270986251,4.47654,1576.4,1576.3,1.26876]
[1745270987353,1.2688,1576.3,1576.2,1.26878]
[1745270988855,1.2688,1576.3,1576.2,2.95688]
[1745270989956,3.2078,1576.4,1576.2,1.6881]
[1745270990154,1.26876,1576.3,1576.2,2.95689]
[1745270994963,3.2078,1576.4,1576.3,1.26876]
[1745270995260,4.47648,1576.4,1576.3,2.96486]
[1745270995659,3.2078,1576.4,1576.3,2.96486]
[1745270995960,4.47648,1576.4,1576.3,2.96486]
[1745270997358,3.2078,1576.4,1576.3,2.96486]
[1745270997557,7.25267,1576.5,1576.4,1.26868]
[1745270997865,7.25267,1576.5,1576.4,5.86768]
[1745270999766,7.25267,1576.5,1576.4,1.26868]
[1745271000067,9.05177,1576.5,1576.4,1.26868]
[1745271001367,1.26868,1576.4,1576.3,5.7875]
[1745271001568,6.27558,1576.4,1576.3,5.7875]
[1745271002065,6.27558,1576.4,1576.3,2.7723]
[1745271002365,6.27558,1576.4,1576.2,5.39779]
[1745271002366,1.269,1576.1,1576.0,1.26894]
[1745271002568,3.2078,1576.2,1576.0,2.6992]
[1745271002767,3.09892,1576.1,1576.0,5.79184]
[1745271003162,1.26901,1576.0,1575.9,0.00951083]
[1745271003357,6.30681,1576.0,1575.9,0.00951083]
[1745271005668,12.29081,1576.0,1575.9,0.00951083]
[1745271006168,17.29081,1576.0,1575.9,0.00951083]
[1745271006876,17.29081,1576.0,1575.9,8.3e-07]
[1745271007375,23.43681,1576.0,1575.9,8.3e-07]
[1745271008072,1.26949,1575.4,1575.3,2.6877]
[1745271008577,1.26957,1575.3,1575.2,1.7136]
[1745271008871,3.2078,1575.3,1575.1,2.6824]
[1745271009070,1.26973,1575.1,1575.0,1.7136]
[1745271009376,1.26973,1575.1,1575.0,1.72311083]
[1745271009774,1.8312,1575.2,1575.0,1.72311083]
[1745271009775,3.10091,1575.2,1575.0,1.72311083]
[1745271009975,1.26973,1575.1,1575.0,1.72311083]
[1745271010178,3.10093,1575.1,1575.0,0.00951083]
[1745271010570,6.30873,1575.1,1575.0,0.00951083]
[1745271011481,16.42273,1575.1,1575.0,0.00951083]
[1745271011665,12.29273,1575.1,1575.0,0.00951083]
[1745271012679,17.29273,1575.1,1575.0,0.00951083]
[1745271013776,17.29273,1575.1,1575.0,8.3e-07]
[1745271013972,1.27017,1574.6,1574.3,4.37745]
[1745271014173,4.47802,1574.5,1574.3,4.4872]
[1745271014373,6.27202,1574.5,1574.3,4.4872]
[1745271015185,5.0018,1574.5,1574.3,4.4872]
[1745271015374,3.10299,1574.4,1574.3,4.4872]
[1745271015981,3.10299,1574.4,1574.3,2.8045]
[1745271016178,1.27038,1574.3,1574.2,0.02441083]
[1745271016379,7.69028,1574.3,1574.2,0.02441083]
[1745271016582,7.69028,1574.3,1574.2,0.00951083]
[1745271018185,13.67428,1574.3,1574.2,8.3e-07]
[1745271018390,13.67428,1574.3,1573.5,4.4866]
[1745271018391,30.77189624,1574.3,1573.5,4.4866]
[1745271018688,3.2078,1573.7,1573.5,4.4866]
[1745271019280,4.47867,1573.7,1573.5,4.4866]
[1745271019478,3.2078,1573.7,1573.5,4.4866]
[1745271019687,1.7871,1573.6,1573.5,4.4866]
[1745271020393,3.05808,1573.6,1573.4,16.73309193]
[1745271020685,3.2078,1573.5,1573.4,1.69201083]
[1745271025485,4.47882,1573.5,1573.4,1.69201083]
[1745271025788,3.2078,1573.5,1573.4,1.69201083]
[1745271026788,10.46282,1573.5,1573.4,1.69201083]
[1745271026993,12.19392,1573.5,1573.4,1.69201083]
[1745271028287,18.33992,1573.5,1573.4,1.69201083]
[1745271034196,12.19392,1573.5,1573.4,1.69201083]
[1745271036795,12.19392,1573.5,1573.4,8.3e-07]
[1745271036988,12.83503505,1573.5,1573.4,8.3e-07]
[1745271037190,1.27126,1573.2,1573.1,4.3904]
[1745271037385,5.12017505,1573.2,1573.1,2.6311]
[1745271038086,6.89037505,1573.2,1573.1,2.6311]
[1745271039386,1.27134,1573.1,1573.0,0.00634052]
[1745271039691,3.04864,1573.1,1573.0,0.00634052]
[1745271040094,1.27134,1573.1,1573.0,0.00634052]
[1745271040282,1.91245505,1573.1,1573.0,1.38184052]
[1745271042995,1.27147,1573.0,1572.9,1.27147]
[1745271043397,1.91258505,1573.0,1572.9,1.27147]
[1745271046197,1.91258505,1573.0,1572.9,2.64807]
[1745271046393,1.91258505,1573.0,1572.8,3.2078]
[1745271046588,1.91258505,1573.0,1572.9,1.27147]
[1745271047297,1.91254505,1573.0,1572.9,1.27147]
[1745271048196,1.91254505,1573.0,1572.9,7.41747]
[1745271048598,0.64111505,1573.0,1572.9,9.19117]
[1745271048798,1.91254505,1573.0,1572.9,9.19117]
[1745271049198,1.91254505,1573.0,1572.9,3.04517]
[1745271049687,1.91254505,1573.0,1572.9,4.43397]
[1745271050599,0.64111505,1573.0,1572.9,4.43397]
[1745271051303,0.64111505,1573.0,1572.9,10.57997]
[1745271051498,0.64111505,1573.0,1572.9,15.57997]
[1745271051693,7.25525,1573.3,1573.2,1.27126]
[1745271051893,7.25525,1573.3,1573.2,5.57726]
[1745271052095,7.25525,1573.3,1573.2,11.72326]
[1745271052599,5.984,1573.3,1573.2,14.91486]
[1745271052809,1.27108,1573.5,1573.4,1.27103]
[1745271053196,1.27108,1573.5,1573.4,7.41703]
[1745271053398,4.4937,1573.6,1573.5,1.27102]
[1745271053603,4.4937,1573.6,1573.5,10.09562]
[1745271053802,4.21468088,1573.7,1573.6,1.27094]
[1745271053803,5.48560088,1573.7,1573.6,1.27094]
[1745271054102,5.48560088,1573.7,1573.6,3.09244]
[1745271054807,6.75792535,1573.9,1573.8,1.27078]
[1745271055099,6.75792535,1573.9,1573.8,8.78458]
[1745271055305,6.75792535,1573.9,1573.8,54.58458]
[1745271055505,10.58237158,1574.0,1573.9,1.2707]
[1745271056008,10.58237158,1574.0,1573.9,6.2707]
[1745271056208,10.58237158,1574.0,1573.9,12.4167]
[1745271056701,0.00951083,1574.1,1574.0,1.27062]
[1745271056894,0.00951083,1574.1,1574.0,4.47842]
[1745271057098,8.3e-07,1574.1,1574.0,15.62442]
[1745271058195,8.3e-07,1574.1,1574.0,56.42442]
[1745271058706,10.58237158,1574.3,1574.2,1.27046]
[1745271058909,10.58237158,1574.3,1574.2,8.78326]
[1745271059106,10.58237158,1574.3,1574.2,19.92926]